[Event "22nd Indian Women chT 2025"]
[Site "Gujarat"]
[Date "2025.03.06"]
[Round "2.1"]
[White "Gorli Nyna"]
[Black "Padmini, Rout"]
[Result "0-1"]
[Annotator "TA"]
[ECO "B22"]
[WhiteElo "1835"]
[BlackElo "2356"]
[PlyCount "80"]
[EventDate "2025.03.03"]
[EventCountry "IND"]
[SourceTitle "playchess.com"]
[Source "ChessBase"]
[SourceQuality "1"]
[TimeControl "5400+30"]

{[%evp 9,80,56,41,39,55,1,20,17,49,36,27,44,53,10,31,28,50,18,49,-38,-45,-78,-104,-126,-126,-118,-123,-127,-93,-149,-147,-141,-66,-269,-260,-375,-354,-393,-394,-381,-368,-383,-381,-381,-380,-365,-393,-392,-386,-658,-654,-617,-609,-593,-611,-927,-894,-846,-845,-814,-793,-747,-390,-397,-390,-763,-688,-29981,-29982,-29980,-29981,-29982,-29982]} 1. e4 {[%emt 0:03:16]} c5 {[%emt 0:00:13]} 2. c3 {[%emt 0:00:25]} d5 {[%emt 0:01:20]} 3. exd5 {[%emt 0:01:20]} Nf6 {[%emt 0:00:07]} 4. Bb5+ {[%emt 0:01:15]} Bd7 {[%emt 0:00:51]} 5. Bxd7+ {[%emt 0:00:55]} Qxd7 {[%emt 0:01:05]} 6. c4 {[%emt 0:01:19] B22: Sicilian: 2 c3.} e6 {[%emt 0:00:38]} 7. dxe6 {[%emt 0:00:39]} (7. Qe2 $14) 7... Qxe6+ $11 {[%emt 0:02:46]} 8. Qe2 {[%emt 0:00:11] The position is equal.} Nc6 {[%emt 0:00:22]} 9. Qxe6+ {[%emt 0:19:04]} fxe6 {[%emt 0:00:19]} 10. Nc3 {[%emt 0:00:48]} Nb4 {[%emt 0:03:51]} 11. Kf1 $146 {[%emt 0:01:37]} (11. Ke2 O-O-O 12. Nf3 Be7 13. Rd1 Nd3 14. Ne1 Nf4+ 15. Kf1 Rhf8 16. d3 Ng6 17. Bg5 {1-0 Canal Oliveras,J (2333)-Ortega Serra,M (2336) Roncana op-A 8th 2014 (8)}) 11... Bd6 {[%emt 0:12:36]} 12. Nf3 {[%emt 0:06:51]} O-O {[%emt 0:05:09]} 13. b3 {[%emt 0:03:36]} e5 {[%emt 0:04:37]} 14. Nb5 {[%emt 0:14:15]} (14. Ng5 $14) 14... Rad8 $15 {[%emt 0:14:17]} 15. Ng5 {[%emt 0:11:13]} (15. Nxa7 e4 16. Ng5 Ng4 $11) 15... Rfe8 {[%emt 0:01:05] Prevents Ne6.} 16. Nxd6 {[%emt 0:11:46]} Rxd6 {[%emt 0:00:10]} 17. Ke2 {[%emt 0:02:58]} h6 {[%emt 0:03:30][%mdl 1024] Black has strong compensation.} 18. Nf3 {[%emt 0:03:07]} Nd3 {[%emt 0:07:23]} 19. Ne1 {[%emt 0:08:37]} (19. Nh4 $142) 19... e4 $1 $17 {[%emt 0:01:46] Black is much more active. The white rooks are passive.} 20. Ba3 {[%emt 0:02:01]} b6 {[%emt 0:05:35]} ({Black should play} 20... Ra6 $17 {Hoping for ...Nf4+.} 21. Nc2 Rd8) 21. g3 {[%emt 0:01:14] Wards off Nf4+. This move loses the game for White.} (21. Nxd3 $2 exd3+ 22. Kd1 Ng4 $19) ({Better is} 21. Kf1 $1 $15) 21... Ng4 $19 {[%emt 0:01:46]} 22. Nxd3 {[%emt 0:01:35]} (22. Rg1 {is a better defense.}) 22... exd3+ {[%emt 0:00:23]} (22... Rxd3 23. h3 Ne5 24. Bb2 $11) 23. Kf3 {[%emt 0:00:10] [#] White is weak on the light squares} h5 {[%emt 0:00:39]} 24. h3 {[%emt 0:02:37]} Rf6+ {[%emt 0:05:16]} 25. Kg2 {[%emt 0:00:07]} Rxf2+ {[%emt 0:09:34]} ({Don't do} 25... Nxf2 26. Rhe1 Ne4 27. Re3 Rf2+ 28. Kg1 Rxd2 29. Rae1 Rxa2 30. Bc1 $19) 26. Kg1 {[%emt 0:00:08]} Rxd2 $1 {[%emt 0:00:08]} 27. hxg4 {[%emt 0:00:35]} hxg4 {[%emt 0:02:54]} 28. Rh5 {[%emt 0:01:57]} Rde2 {[%emt 0:00:45]} 29. Rd5 $2 {[%emt 0:00:25]} (29. Rf1) 29... d2 {[%emt 0:00:43] ( -> ...Re1+)} (29... R8e3 30. Rd1 Re1+ (30... Rxa2 31. Bc1 $15) (30... Rxg3+ 31. Kh1 $15) 31. Rxe1 Rxe1+ 32. Kf2 Re2+ 33. Kf1 Rxa2 34. Bxc5 bxc5 35. Ke1 $11) 30. Rf1 {[%emt 0:00:10]} Rf8 {[%emt 0:00:41]} 31. Rxf8+ {[%emt 0:01:14]} Kxf8 {[%emt 0:00:05][%mdl 4096] Endgame KRB-KR} 32. b4 {[%emt 0:00:26]} Re1+ {[%emt 0:00:18]} 33. Kf2 {[%emt 0:00:02]} d1=Q {[%emt 0:00:10]} 34. Rxd1 {[%emt 0:00:02]} Rxd1 {[%emt 0:00:06]} 35. bxc5 {[%emt 0:00:10] KR-KB} Rd3 {[%emt 0:00:48]} 36. Bb4 {[%emt 0:01:50]} a5 {[%emt 0:02:06]} 37. c6+ $2 {[%emt 0:00:33] [#]} (37. Ke2 Rd4 (37... Rxg3 $2 38. cxb6+ axb4 39. b7 $18) 38. Ba3) 37... Ke8 $1 {[%emt 0:00:29]} (37... axb4 $2 38. c7 Kf7 39. c8=Q $18 (39. c8=R $2 Rf3+ 40. Ke2 Rxg3 $19)) 38. Bf8 {[%emt 0:00:21]} Rf3+ {[%emt 0:00:30] Black mates.} (38... Kxf8 $2 {is the wrong capture.} 39. c7 $18) 39. Ke2 {[%emt 0:00:32]} Rxf8 {[%emt 0:00:08]} 40. c7 {[%emt 0:00:17]} Kd7 {[%emt 0:00:05] Weighted Error Value: White=0.72/Black=0.17 (very precise)   Loses game:     	White=1     	---        Mistake:       	White=6     	Black=1      Inaccurate:     	White=4     	Black=2      OK:         	White=10    	Black=7      Best:        	---       	Black=4      Strong:       	---       	Black=3} 0-1

[Event "22nd Indian Women chT 2025"]
[Site "Gujarat"]
[Date "2025.03.06"]
[Round "2.2"]
[White "Karavade, Eesha"]
[Black "Sravyasree Bheemarasetty"]
[Result "1-0"]
[Annotator "TA"]
[ECO "D45"]
[WhiteElo "2264"]
[BlackElo "1829"]
[PlyCount "145"]
[EventDate "2025.03.03"]
[EventCountry "IND"]
[SourceTitle "playchess.com"]
[Source "ChessBase"]
[SourceQuality "1"]
[TimeControl "5400+30"]

{[%evp 17,144,23,13,31,63,12,63,45,47,26,69,74,83,76,83,50,141,114,106,114,168,140,149,131,125,125,139,120,126,75,87,83,89,80,83,74,74,77,76,80,70,57,53,51,51,46,47,53,68,70,94,93,92,88,91,70,82,66,69,66,71,71,70,66,87,81,93,93,93,8,8,8,8,8,8,8,8,8,8,8,97,97,1018,686,849,803,1131,945,1410,1279,864,746,495,472,4894,4087,2314,1887,2240,1855,5114,5057,29983,29984,29984,29985,29984,29985,29986,29987,29987,29988,29988,29989,29989,29989,29990,29989,29991,29992,29995,29996,29996,29997,29997,29994,29998,29999,29999]} 1. d4 {[%emt 0:00:24]} d5 {[%emt 0:02:39]} 2. c4 {[%emt 0:01:24]} e6 {[%emt 0:00:15]} 3. Nf3 {[%emt 0:01:15]} Nf6 {[%emt 0:00:17]} 4. Nc3 {[%emt 0:03:20]} c6 {[%emt 0:00:52]} 5. e3 {[%emt 0:01:08][%cal Be2e3,Be3e4][%mdl 32]} Be7 {[%emt 0:00:40]} 6. Bd3 {[%emt 0:01:13]} dxc4 {[%emt 0:00:26]} 7. Bxc4 {[%emt 0:00:02]} b5 {[%emt 0:00:11]} 8. Bd3 {[%emt 0:00:07]} Bb7 {[%emt 0:01:10]} 9. O-O {[%emt 0:00:17]} O-O {[%emt 0:00:46]} 10. e4 {[%emt 0:07:33] D45: Semi-Slav: 5 e3.} a6 {[%emt 0:05:01]} 11. Bg5 {[%emt 0:03:51]} (11. e5 $14 Nfd7 12. Bc2) 11... Nbd7 {[%emt 0:08:23]} ({Black should play} 11... Nfd7 $11 12. Bxe7 Qxe7) 12. e5 $14 {[%emt 0:03:39] White is slightly better.} Nd5 {[%emt 0:01:00] [#] and ...Nxc3 should not be overlooked} 13. Ne4 {[%emt 0:01:08]} (13. Bxe7 Qxe7 14. Nxd5 cxd5 15. Nd2) 13... f6 {[%emt 0:10:20]} 14. exf6 {[%emt 0:01:43]} gxf6 {[%emt 0:03:17]} 15. Bh6 {[%emt 0:00:02]} Rf7 {[%emt 0:00:35]} 16. Rc1 {[%emt 0:00:24][%cal Ba1c1,Bc1c5,Bc5h5][%mdl 32]} Nf8 $146 {[%emt 0:10:06]} (16... f5 $14) (16... Bf8 17. Qd2 Rc8 18. Nc5 Nxc5 19. dxc5 Rcc7 20. Nd4 Bc8 21. Rfe1 Bxh6 22. Qxh6 e5 {0-1 Marshall,F-Lipschuetz,S New York Manhattan CC Sexangular 1900 (1)}) 17. Nc5 {[%emt 0:04:09]} Bxc5 {[%emt 0:04:13]} 18. Rxc5 {[%emt 0:00:44]} Ne7 {[%emt 0:13:45]} (18... Qd6 $16 19. Nh4 Re7) 19. Qe2 {[%emt 0:04:01] Black is weak on the dark squares} Qd6 {[%emt 0:03:56]} 20. Rh5 {[%emt 0:03:09] White has more active pieces. The black rooks are passive.} Nfg6 {[%emt 0:02:57]} 21. Re1 {[%emt 0:01:53]} Bc8 {[%emt 0:01:07]} 22. Qc2 {[%emt 0:06:17]} Bd7 {[%emt 0:08:39]} 23. Qc5 {[%emt 0:07:35]} (23. Be4 $142) 23... Qxc5 $16 {[%emt 0:01:59]} 24. Rxc5 {[%emt 0:00:03]} Nd5 {[%emt 0:01:05]} 25. g3 {[%emt 0:03:27]} Re7 {[%emt 0:02:45]} 26. Bf1 {[%emt 0:03:43]} Rae8 {[%emt 0:03:31]} 27. Bd2 {[%emt 0:01:34]} e5 {[%emt 0:03:05]} 28. dxe5 {[%emt 0:00:03]} Nxe5 {[%emt 0:00:42]} 29. Nd4 {[%emt 0:02:23]} (29. Nxe5 {simplifies} Rxe5 30. Rxe5 fxe5 31. a3) 29... Nd3 {[%emt 0:05:28] Against Rec1} 30. Rxe7 {[%emt 0:00:08]} ({Reject} 30. Bxd3 Rxe1+ 31. Bxe1 Rxe1+ 32. Kg2 Nb4 $11 (32... Rd1 33. Bf5 $14)) 30... Nxc5 {[%emt 0:00:03] A dynamic duo of knights.} 31. Rxe8+ {[%emt 0:00:09]} Bxe8 {[%emt 0:00:05]} 32. Bg2 {[%emt 0:00:04]} Nd3 {[%emt 0:01:19]} 33. b3 {[%emt 0:00:25]} N3b4 {[%emt 0:02:36]} 34. a3 {[%emt 0:02:53]} Nd3 {[%emt 0:00:28]} 35. Kf1 {[%emt 0:01:22]} Nc5 {[%emt 0:02:23]} 36. f4 {[%emt 0:02:40]} Bd7 {[%emt 0:00:50]} 37. f5 {[%emt 0:02:04]} Nd3 {[%emt 0:01:02]} 38. Ke2 {[%emt 0:02:28]} Ne5 {[%emt 0:00:20]} 39. h3 {[%emt 0:00:31]} h5 {[%emt 0:00:51]} 40. Bb4 {[%emt 0:01:28]} Kf7 {[%emt 0:00:20]} 41. Bd6 {[%emt 0:02:01]} Ne7 {[%emt 0:00:41]} 42. Be4 {[%emt 0:00:09]} a5 {[%emt 0:00:28][%cal Ba6a5,Ba5a4][%mdl 32]} 43. b4 {[%emt 0:07:52]} ({Better is} 43. Bc2 $16) 43... a4 $1 $11 {[%emt 0:00:20]} 44. Bxe5 {[%emt 0:00:25]} fxe5 {[%emt 0:00:10]} 45. Nf3 {[%emt 0:00:05]} Bxf5 {[%emt 0:01:07]} 46. Bxf5 {[%emt 0:00:22]} Nxf5 {[%emt 0:00:03]} 47. Nxe5+ {[%emt 0:00:07][%mdl 4096] Endgame KN-KN} Ke6 {[%emt 0:00:06]} 48. Nxc6 {[%emt 0:00:17] [#]} Kd5 {[%emt 0:00:45]} (48... Nxg3+ $11 49. Kd3 Kd5) 49. g4 $1 $16 {[%emt 0:01:43]} hxg4 {[%emt 0:00:40][%mdl 8192] Loses the game.} (49... Kxc6 $16 50. gxf5 Kd6) 50. hxg4 $18 {[%emt 0:00:02]} Nd6 {[%emt 0:00:39]} 51. Na7 {[%emt 0:00:10]} Ke4 {[%emt 0:00:32]} 52. g5 {[%emt 0:00:37]} Kf5 {[%emt 0:00:35]} 53. Kd3 {[%emt 0:00:06]} Kxg5 {[%emt 0:00:18]} 54. Kd4 {[%emt 0:00:03] Black must now prevent Kc5.} Kf6 {[%emt 0:00:17]} 55. Kc5 {[%emt 0:00:20][%csl LRb5,LRd6]} Ke7 {[%emt 0:00:09]} (55... Ke5 $142 56. Nxb5 Ne4+ 57. Kc4 Nd2+ 58. Kd3 Nf3) 56. Nxb5 {[%emt 0:00:10]} Ne4+ {[%emt 0:00:06]} 57. Kc6 {[%emt 0:00:41]} Kd8 {[%emt 0:00:11]} 58. Nd6 {[%emt 0:00:16]} Nc3 {[%emt 0:00:24]} 59. b5 {[%emt 0:02:34]} Nxb5 {[%emt 0:00:07]} 60. Nxb5 {[%emt 0:00:10] KN-KP. White mates.} Kc8 {[%emt 0:00:05]} 61. Nc3 {[%emt 0:00:06]} Kb8 {[%emt 0:00:07]} 62. Nxa4 {[%emt 0:00:05]} Ka7 {[%emt 0:00:07]} 63. Nc5 {[%emt 0:00:06]} Kb8 {[%emt 0:00:11]} 64. a4 {[%emt 0:00:05]} Ka7 {[%emt 0:00:05]} 65. a5 {[%emt 0:00:04]} Kb8 {[%emt 0:00:10]} 66. Kb6 {[%emt 0:00:05]} Ka8 {[%emt 0:00:05]} 67. a6 {[%emt 0:00:09]} Kb8 {[%emt 0:00:05]} 68. Ne6 {[%emt 0:00:08]} Ka8 {[%emt 0:00:13]} 69. Nc7+ {[%emt 0:00:05]} Kb8 {[%emt 0:00:05]} 70. a7+ {[%emt 0:00:04]} Kc8 {[%emt 0:00:04]} 71. Kc6 {[%emt 0:00:12][%cal Ra7a8]} Kd8 {[%emt 0:00:05]} 72. Kd6 {[%emt 0:00:04][%cal Ra7a8]} Kc8 {[%emt 0:00:05]} 73. a8=Q# {[%emt 0:00:07] Weighted Error Value: White=0.12 (very precise) /Black=0.75  Loses game:     	---       	Black=1      Mistake:       	White=3     	Black=4      Inaccurate:     	White=2     	Black=2      OK:         	White=17    	Black=15     Best:        	White=2     	Black=3      Strong:       	White=1     	Black=1} 1-0

[Event "22nd Indian Women chT 2025"]
[Site "Gujarat"]
[Date "2025.03.06"]
[Round "2.3"]
[White "Tripurambika V"]
[Black "Mohota, Nisha"]
[Result "0-1"]
[Annotator "TA"]
[ECO "B07"]
[WhiteElo "1802"]
[BlackElo "2169"]
[PlyCount "132"]
[EventDate "2025.03.03"]
[EventCountry "IND"]
[SourceTitle "playchess.com"]
[Source "ChessBase"]
[SourceQuality "1"]
[TimeControl "5400+30"]

{[%evp 15,131,0,10,-36,-35,-50,-39,-47,-47,-62,-72,-81,-66,-98,-94,-160,-147,-187,-174,-247,-244,-235,-243,-240,-240,-250,-238,-355,-372,-464,-410,-414,-411,-405,-387,-441,-391,-441,-436,-487,-447,-538,-504,-640,-631,-635,-615,-1154,-4890,-1214,-642,-647,-620,-787,-782,-781,-779,-740,-666,-1335,-1151,-1411,-1349,-924,-855,-29965,-29966,-29956,-29962,-29967,-29968,-29975,-29976,-29980,-29981,-29981,-29981,-29978,-29979,-29979,-29980,-29983,-29977,-29984,-29985,-29985,-29986,-29986,-29987,-29987,-29988,-29988,-29989,-29989,-29990,-29990,-29991,-29992,-29992,-29992,-29993,-29994,-29995,-29995,-29996,-29997,-29996,-29996,-29995,-29995,-29996,-29996,-29997,-29997,-29998,-29998,-29999,-29999]} 1. e4 {[%emt 0:04:44]} d6 {[%emt 0:00:18]} 2. d4 {[%emt 0:01:03]} Nf6 {[%emt 0:00:09]} 3. Nc3 {[%emt 0:01:02]} e5 {[%emt 0:00:03]} 4. dxe5 {[%emt 0:04:06]} dxe5 {[%emt 0:00:05]} 5. Qxd8+ {[%emt 0:02:18]} Kxd8 {[%emt 0:00:03]} 6. Bg5 {[%emt 0:01:12]} Be6 {[%emt 0:02:54]} 7. Nf3 {[%emt 0:06:10]} Nbd7 {[%emt 0:00:58]} 8. O-O-O {[%emt 0:02:03]} Kc8 {[%emt 0:03:11]} 9. Bxf6 {[%emt 0:04:23] B07: Pirc Defence: Miscellaneous Systems.} (9. Bh4 $11 {is superior.}) 9... gxf6 $15 {[%emt 0:02:39]} 10. Nd2 {[%emt 0:02:28]} Bb4 {[%emt 0:09:44]} 11. Nd5 {[%emt 0:03:08] Black is slightly better.} Bc5 {[%emt 0:00:16][%cal Oc7c6]} 12. f3 {[%emt 0:01:03]} c6 {[%emt 0:00:33]} 13. Nc3 $146 {[%emt 0:00:44]} (13. c4 cxd5 14. cxd5 Bxd5 15. exd5 Be3 16. Kb1 Bxd2 17. Rxd2 Nb6 18. Bd3 Kc7 19. d6+ Kxd6 20. Bxh7+ {0-1 Hagedorn,A (1827)-Schober,R (2115) Lippe Cup 04th 2007 (1)}) 13... b5 {[%emt 0:02:45] White is weak on the dark squares} 14. a4 {[%emt 0:07:49]} a6 {[%emt 0:05:56]} 15. b3 {[%emt 0:02:15]} ({White should play} 15. Kb1) 15... Bd4 $17 {[%emt 0:03:13] Black is more active.} 16. Ndb1 {[%emt 0:01:21]} Nc5 {[%emt 0:02:27]} 17. b4 {[%emt 0:02:36]} (17. Be2 {was worth a try.}) 17... Nxa4 $19 {[%emt 0:01:39]} 18. Nxa4 {[%emt 0:00:09]} bxa4 {[%emt 0:00:07]} 19. c3 {[%emt 0:02:32]} Be3+ {[%emt 0:00:05]} 20. Kb2 {[%emt 0:00:11]} a5 {[%emt 0:01:54]} 21. Re1 {[%emt 0:04:12]} (21. Be2 $142) 21... Bh6 {[%emt 0:06:18] This pair of bishops is nice.} 22. Ka3 {[%emt 0:02:30]} axb4+ {[%emt 0:01:28]} 23. cxb4 {[%emt 0:00:27]} Rd8 {[%emt 0:00:20] [#] Prevents Rd1.} 24. Be2 {[%emt 0:02:05]} Bb3 {[%emt 0:00:14]} 25. Rc1 {[%emt 0:21:37]} Bxc1+ {[%emt 0:01:56]} 26. Rxc1 {[%emt 0:00:07]} Kb7 {[%emt 0:00:38]} 27. Rc3 {[%emt 0:09:36]} Kb6 {[%emt 0:01:58]} 28. g3 {[%emt 0:06:14]} Rd4 {[%emt 0:01:02]} 29. Re3 {[%emt 0:02:50]} Rad8 {[%emt 0:02:56][%cal Od4d2]} 30. Nc3 {[%emt 0:00:54]} Rd2 {[%emt 0:00:04] [#]} 31. Nxa4+ {[%emt 0:01:06]} Bxa4 {[%emt 0:00:04]} 32. Kxa4 {[%emt 0:00:11][%mdl 4096] Endgame KRR-KRB} Ra8+ {[%emt 0:00:52]} 33. Kb3 {[%emt 0:00:14]} Raa2 {[%emt 0:02:58]} 34. Bc4 {[%emt 0:01:17]} Rdb2+ {[%emt 0:02:53]} 35. Kc3 {[%emt 0:01:13]} Ra3+ {[%emt 0:00:10]} 36. Kxb2 {[%emt 0:00:38]} Rxe3 {[%emt 0:00:03]} 37. Bxf7 {[%emt 0:00:36]} Rxf3 {[%emt 0:00:12] KR-KB} 38. Bc4 {[%emt 0:00:54]} Rf2+ {[%emt 0:00:27]} 39. Kc3 {[%emt 0:00:12]} Rxh2 {[%emt 0:00:09] Hoping for ...Rg2.} 40. g4 {[%emt 0:00:08]} Rh3+ {[%emt 0:00:44] Black mates.} 41. Kd2 {[%emt 0:00:25]} Rg3 {[%emt 0:00:10]} 42. Be6 {[%emt 0:00:25]} Kb5 {[%emt 0:00:16]} 43. Bd7 {[%emt 0:00:11]} Kxb4 {[%emt 0:00:21]} 44. Bxc6 {[%emt 0:00:36]} Rxg4 {[%emt 0:00:10]} 45. Ke3 {[%emt 0:01:54]} Rg3+ {[%emt 0:01:18]} 46. Kf2 {[%emt 0:00:22]} Rc3 {[%emt 0:00:04]} 47. Be8 {[%emt 0:00:53]} Kc5 {[%emt 0:00:05]} 48. Bd7 {[%emt 0:00:19]} Kd4 {[%emt 0:00:03]} 49. Bf5 {[%emt 0:00:10]} h5 {[%emt 0:00:09]} 50. Kg2 {[%emt 0:01:03]} Re3 {[%emt 0:00:22]} 51. Bg6 {[%emt 0:00:16]} h4 {[%emt 0:00:05]} 52. Bf5 {[%emt 0:00:30]} Rxe4 {[%emt 0:00:17]} 53. Be6 {[%emt 0:00:59]} Rf4 {[%emt 0:00:11]} 54. Bc8 {[%emt 0:00:15]} e4 {[%emt 0:00:04]} 55. Ba6 {[%emt 0:00:11]} e3 {[%emt 0:00:06]} 56. Bb5 {[%emt 0:00:09]} Kc3 {[%emt 0:00:15]} 57. Ba6 {[%emt 0:00:55]} Kd2 {[%emt 0:00:08]} 58. Kh2 {[%emt 0:01:00]} e2 {[%emt 0:00:20]} 59. Bxe2 {[%emt 0:00:04]} Kxe2 {[%emt 0:00:04] KR-K} 60. Kh3 {[%emt 0:00:10]} Kf3 {[%emt 0:00:21]} 61. Kh2 {[%emt 0:00:11]} Kg4 {[%emt 0:00:07]} 62. Kg2 {[%emt 0:00:16]} Rf5 {[%emt 0:00:06]} 63. Kh2 {[%emt 0:01:49]} Rf2+ {[%emt 0:00:11]} 64. Kh1 {[%emt 0:00:05]} Kg3 {[%emt 0:00:07][%cal Rf2f1]} 65. Kg1 {[%emt 0:00:11]} Rf3 {[%emt 0:00:06]} 66. Kh1 {[%emt 0:00:17]} Rf1# {[%emt 0:00:03] Black took control after the opening.   Weighted Error Value: White=0.96/Black=0.18 (very precise)   Mistake:       	White=3     	---        Inaccurate:     	White=1     	---        OK:         	White=3     	Black=15} 0-1

[Event "22nd Indian Women chT 2025"]
[Site "Gujarat"]
[Date "2025.03.06"]
[Round "2.4"]
[White "Vishwa Vasnawala"]
[Black "Bhillva Nilaya Kondari Eswara "]
[Result "1-0"]
[Annotator "TA"]
[ECO "A06"]
[WhiteElo "2085"]
[BlackElo "1723"]
[PlyCount "91"]
[EventDate "2025.03.03"]
[EventCountry "IND"]
[SourceTitle "playchess.com"]
[Source "ChessBase"]
[SourceQuality "1"]
[TimeControl "5400+30"]

{[%evp 12,91,35,29,29,28,27,25,24,14,22,17,27,26,24,29,26,27,33,33,41,31,35,36,37,25,22,22,49,21,31,39,41,33,46,47,56,27,15,34,146,146,506,144,29990,2260,29994,517,499,391,538,615,672,620,607,601,792,789,760,733,738,424,404,410,444,442,423,434,416,396,486,450,592,460,460,452,445,445,445,445,790,778]} 1. d4 {[%emt 0:10:57]} d5 {[%emt 0:00:32]} 2. c4 {[%emt 0:00:17]} c6 {[%emt 0:00:21]} 3. Nf3 {[%emt 0:00:12]} Nf6 {[%emt 0:00:37]} 4. e3 {[%emt 0:00:13]} e6 {[%emt 0:00:34]} 5. b3 {[%emt 0:00:34]} Nbd7 {[%emt 0:01:09]} 6. Bd3 {[%emt 0:00:49]} Bd6 {[%emt 0:01:14]} 7. Bb2 {[%emt 0:00:24]} O-O {[%emt 0:02:56] A06: Réti Opening: 1 Nf3 d5.} 8. O-O {[%emt 0:00:34]} b6 {[%emt 0:01:15]} 9. Nbd2 {[%emt 0:06:44]} Bb7 {[%emt 0:02:06] White has an edge.} 10. Qc2 {[%emt 0:04:59]} h6 {[%emt 0:18:58]} (10... c5 {with more complications.} 11. dxc5 Nxc5 12. Bxf6 Qxf6 13. Bxh7+ Kh8) 11. Rfe1 {[%emt 0:07:43]} Rc8 $146 {[%emt 0:09:47]} (11... c5 12. e4 dxe4 13. Nxe4 Nxe4 14. Bxe4 Bxe4 15. Qxe4 Nf6 16. Qh4 Nd7 17. Qh3 Re8 18. dxc5 Bxc5 19. Qg3 {½-½ Seryakov,O (2416)-Bukarin,M (2476) Champion's League 2021/A email}) 12. e4 {[%emt 0:09:45]} dxe4 {[%emt 0:01:49]} 13. Nxe4 {[%emt 0:00:04]} Nxe4 {[%emt 0:00:33]} 14. Bxe4 {[%emt 0:00:06]} Nf6 {[%emt 0:00:49]} 15. c5 {[%emt 0:02:26]} Be7 {[%emt 0:07:59]} 16. Ne5 {[%emt 0:04:05]} Nxe4 {[%emt 0:05:30]} 17. Rxe4 {[%emt 0:06:45]} Qd5 {[%emt 0:04:21]} 18. b4 {[%emt 0:01:51]} Rfd8 {[%emt 0:07:12]} 19. Rf4 {[%emt 0:07:13]} Rf8 {[%emt 0:06:22]} 20. Qe2 {[%emt 0:02:55]} Rcd8 {[%emt 0:05:05]} 21. h4 {[%emt 0:01:09]} bxc5 {[%emt 0:10:44]} 22. bxc5 {[%emt 0:04:43]} Bf6 {[%emt 0:04:45]} 23. Ng4 {[%emt 0:03:45]} Be7 {[%emt 0:02:11][%cal Of7f5]} 24. Ne3 {[%emt 0:03:34]} Qd7 {[%emt 0:01:44]} 25. Re1 {[%emt 0:05:21]} Qc8 {[%emt 0:03:22] [#]} ({Better is} 25... f5 $14) 26. Qh5 $1 $16 {[%emt 0:06:04] and Ng4 should not be overlooked White is more active.} Ba6 $2 {[%emt 0:00:41][%mdl 8192]} (26... Qc7 $16 {is tougher.} 27. Rg4 f5) 27. Rg4 $2 {[%emt 0:02:52]} (27. Ng4 $18 {and the rest is easy.}) 27... Kh7 {[%emt 0:00:40][%mdl 8192] [#] A mistake that costs the game.} (27... Bd3 $16) 28. d5 $1 {[%emt 0:02:55][%mdl 512]} g6 {[%emt 0:00:31] Black is weak on the dark squares} (28... e5 29. Qxe5) 29. Qe5 {[%emt 0:03:19]} (29. Nf5 $142 Bg5 30. Rxg5 exf5 31. Rxg6 fxg6 32. Re7+ Rf7 33. Rxf7+ Kg8 34. Qxg6#) 29... f6 $18 {[%emt 0:00:29]} 30. Qg3 {[%emt 0:01:45]} (30. Qxe6 Bxc5 (30... Qxe6 31. dxe6 Bb5 32. h5 $16) 31. h5 (31. Bxf6 $2 Qxe6 32. dxe6 Rxf6 $19) 31... Bd3 $16) 30... Rg8 {[%emt 0:00:38]} 31. d6 {[%emt 0:00:26]} Bxd6 {[%emt 0:00:28]} 32. cxd6 {[%emt 0:00:04]} e5 {[%emt 0:00:18] [#]} 33. h5 $1 {[%emt 0:01:14]} gxh5 {[%emt 0:00:28]} (33... Bd3 34. Rd1) 34. Rxg8 {[%emt 0:00:09]} Rxg8 {[%emt 0:00:08]} 35. Qf3 {[%emt 0:00:18]} Qe6 {[%emt 0:00:49]} 36. Qf5+ {[%emt 0:00:10]} Qxf5 {[%emt 0:00:21]} 37. Nxf5 {[%emt 0:00:01]} Bd3 {[%emt 0:00:50]} 38. Ne7 {[%emt 0:00:42][%csl LRc6,LRg8]} Rd8 {[%emt 0:00:21]} 39. Ba3 {[%emt 0:00:04]} (39. Nxc6 Rxd6 40. Ne7 (40. Nxa7 Ra6 $18) 40... Bc4 $18) 39... Bb5 {[%emt 0:00:30]} 40. Rd1 {[%emt 0:00:18]} e4 {[%emt 0:00:25]} 41. Bc5 {[%emt 0:00:26] White is clearly winning.} a6 {[%emt 0:00:14]} 42. d7 {[%emt 0:00:23]} Bd3 {[%emt 0:00:11]} 43. f3 {[%emt 0:00:48]} Rxd7 {[%emt 0:00:53]} 44. fxe4 {[%emt 0:00:10]} ({And not} 44. Nxc6 Rc7 $15) 44... h4 {[%emt 0:00:33]} 45. Kf2 {[%emt 0:00:12]} ({Don't play} 45. Nxc6 Rc7 46. Rxd3 Rxc6) 45... h5 {[%emt 0:00:43]} (45... Rxe7 $142 46. Bxe7 Bxe4 47. Bxf6 h3 48. gxh3 Kg8) 46. Ke3 {[%emt 0:00:10] Weighted Error Value: White=0.69/Black=0.81  Loses game:     	---       	Black=2      Missed win:     	White=1     	---        Mistake:       	White=1     	Black=2      Inaccurate:     	White=2     	Black=4      OK:         	White=11    	Black=9      Best:        	White=1     	Black=1      Strong:       	White=1     	---} 1-0